[Event "*** SCC Grand Prix: Titled Tuesday Blitz"]
[Site "Chess.com"]
[Date "2020.06.02"]
[Round "8"]
[White "djano"]
[Black "tylityli"]
[Result "1-0"]
[WhiteElo "2418"]
[BlackElo "2275"]
[TimeControl "180+1"]
[EndTime "11:36:39 PDT"]
[Termination "djano won by checkmate"]

1. d4 {[%clk 0:03:00.9]} 1... Nf6 {[%clk 0:02:56.5]} 2. Nf3 {[%clk 0:03:00.4]}
2... d5 {[%clk 0:02:55.8]} 3. Bf4 {[%clk 0:02:59.7]} 3... c5 {[%clk 0:02:55.6]}
4. e3 {[%clk 0:02:57.4]} 4... Nc6 {[%clk 0:02:55.6]} 5. Nbd2 {[%clk 0:02:53.9]}
5... Qb6 {[%clk 0:02:49]} 6. dxc5 {[%clk 0:02:53.8]} 6... Qxc5 {[%clk
0:02:48.8]} 7. a3 {[%clk 0:02:51.8]} 7... Bf5 {[%clk 0:02:40.9]} 8. Rc1 {[%clk
0:02:47.7]} 8... e6 {[%clk 0:02:31]} 9. c4 {[%clk 0:02:36.9]} 9... Qb6 {[%clk
0:02:27.4]} 10. b4 {[%clk 0:02:35.1]} 10... dxc4 {[%clk 0:02:15.5]} 11. Nxc4
{[%clk 0:02:33.3]} 11... Qd8 {[%clk 0:02:14.9]} 12. Qa4 {[%clk 0:02:13.3]} 12...
Nd5 {[%clk 0:02:01.1]} 13. b5 {[%clk 0:02:03.4]} 13... Nb8 {[%clk 0:01:44]} 14.
Bg3 {[%clk 0:01:48.2]} 14... Nd7 {[%clk 0:01:37.4]} 15. Be2 {[%clk 0:00:55.9]}
15... N7b6 {[%clk 0:01:23]} 16. Qb3 {[%clk 0:00:56.1]} 16... Nxc4 {[%clk
0:01:16.4]} 17. Bxc4 {[%clk 0:00:57]} 17... Bd6 {[%clk 0:01:11.6]} 18. Bxd5
{[%clk 0:00:46.4]} 18... exd5 {[%clk 0:01:07.3]} 19. O-O {[%clk 0:00:42.9]}
19... Bxg3 {[%clk 0:01:03.9]} 20. hxg3 {[%clk 0:00:43.8]} 20... O-O {[%clk
0:01:03.1]} 21. Rfd1 {[%clk 0:00:42.6]} 21... Be4 {[%clk 0:00:57.5]} 22. Nd4
{[%clk 0:00:42.8]} 22... Qg5 {[%clk 0:00:51.8]} 23. Rc7 {[%clk 0:00:39.1]} 23...
b6 {[%clk 0:00:42.9]} 24. Rdc1 {[%clk 0:00:38.5]} 24... h5 {[%clk 0:00:41.2]}
25. Qb4 {[%clk 0:00:34.8]} 25... h4 {[%clk 0:00:39.3]} 26. Qd6 {[%clk
0:00:29.1]} 26... hxg3 {[%clk 0:00:37.2]} 27. Qxg3 {[%clk 0:00:30]} 27... Qxg3
{[%clk 0:00:32.7]} 28. fxg3 {[%clk 0:00:29.8]} 28... a6 {[%clk 0:00:27.4]} 29.
a4 {[%clk 0:00:27.2]} 29... axb5 {[%clk 0:00:27.2]} 30. axb5 {[%clk 0:00:28.1]}
30... Ra2 {[%clk 0:00:26.8]} 31. Nf3 {[%clk 0:00:27.8]} 31... Re8 {[%clk
0:00:23.4]} 32. Rc8 {[%clk 0:00:26.5]} 32... Rxc8 {[%clk 0:00:19.9]} 33. Rxc8+
{[%clk 0:00:27.4]} 33... Kh7 {[%clk 0:00:20.4]} 34. Rb8 {[%clk 0:00:27.9]} 34...
Ra1+ {[%clk 0:00:19.5]} 35. Kf2 {[%clk 0:00:27.3]} 35... Ra2+ {[%clk 0:00:19.6]}
36. Kg1 {[%clk 0:00:27.8]} 36... Ra1+ {[%clk 0:00:19.8]} 37. Kh2 {[%clk
0:00:28.3]} 37... Ra2 {[%clk 0:00:19.4]} 38. Kh3 {[%clk 0:00:28]} 38... Re2
{[%clk 0:00:17.5]} 39. Rxb6 {[%clk 0:00:26]} 39... Rxe3 {[%clk 0:00:17.6]} 40.
Ng5+ {[%clk 0:00:21.1]} 40... Kg8 {[%clk 0:00:10.8]} 41. Rb8# {[%clk 0:00:21.6]}
1-0

[Event "*** SCC Grand Prix: Titled Tuesday Blitz"]
[Site "Chess.com"]
[Date "2020.06.02"]
[Round "8"]
[White "Rakesh"]
[Black "Funo09"]
[Result "1-0"]
[WhiteElo "2403"]
[BlackElo "2778"]
[TimeControl "180+1"]
[EndTime "11:36:41 PDT"]
[Termination "Rakesh won by resignation"]

1. e4 {[%clk 0:03:00.9]} 1... c5 {[%clk 0:02:59.6]} 2. c3 {[%clk 0:03:00.8]}
2... Nf6 {[%clk 0:02:59.3]} 3. e5 {[%clk 0:03:00.8]} 3... Nd5 {[%clk 0:03:00]}
4. d4 {[%clk 0:03:01.7]} 4... cxd4 {[%clk 0:03:00.9]} 5. Nf3 {[%clk 0:03:02.4]}
5... g6 {[%clk 0:03:01.4]} 6. cxd4 {[%clk 0:03:02.6]} 6... Bg7 {[%clk
0:03:01.8]} 7. Bc4 {[%clk 0:03:03.2]} 7... Nb6 {[%clk 0:03:02.2]} 8. Bb3 {[%clk
0:03:03.7]} 8... O-O {[%clk 0:03:02.9]} 9. O-O {[%clk 0:03:03.5]} 9... d6 {[%clk
0:03:03.5]} 10. h3 {[%clk 0:03:03.7]} 10... Nc6 {[%clk 0:03:03.1]} 11. Qe2
{[%clk 0:03:00.4]} 11... dxe5 {[%clk 0:02:58.9]} 12. dxe5 {[%clk 0:03:01.3]}
12... Nd4 {[%clk 0:02:59.3]} 13. Nxd4 {[%clk 0:03:01]} 13... Qxd4 {[%clk
0:03:00.2]} 14. Re1 {[%clk 0:03:00.6]} 14... Bf5 {[%clk 0:03:00.3]} 15. Nc3
{[%clk 0:03:00.7]} 15... Rac8 {[%clk 0:02:28.8]} 16. Be3 {[%clk 0:02:53.4]}
16... Qb4 {[%clk 0:02:20.2]} 17. Rad1 {[%clk 0:02:48.2]} 17... h5 {[%clk
0:02:11.2]} 18. Rd4 {[%clk 0:02:31.6]} 18... Qa5 {[%clk 0:02:08]} 19. Bg5 {[%clk
0:02:05.9]} 19... Rfe8 {[%clk 0:02:04.7]} 20. Rf4 {[%clk 0:01:57.4]} 20... Rc6
{[%clk 0:01:51.4]} 21. Rxf5 {[%clk 0:01:21.8]} 21... gxf5 {[%clk 0:01:52.3]} 22.
Qxh5 {[%clk 0:01:22.1]} 22... Nc4 {[%clk 0:01:52.2]} 23. e6 {[%clk 0:01:19.2]}
23... Rf8 {[%clk 0:01:44.4]} 24. Bxe7 {[%clk 0:01:19]} 24... fxe6 {[%clk
0:01:38.6]} 25. Bxf8 {[%clk 0:01:18.2]} 25... Kxf8 {[%clk 0:01:39.5]} 26. Bxc4
{[%clk 0:01:14.7]} 26... Rxc4 {[%clk 0:01:39.6]} 27. Rxe6 {[%clk 0:01:15.2]}
27... Rc8 {[%clk 0:01:35.9]} 28. Qg5 {[%clk 0:01:01.2]} 28... Qc5 {[%clk
0:01:34.6]} 29. h4 {[%clk 0:00:48.8]} 29... Bd4 {[%clk 0:01:27.3]} 30. h5 {[%clk
0:00:35.2]} 30... Bxf2+ {[%clk 0:01:25.3]} 31. Kh1 {[%clk 0:00:34]} 31... Bd4
{[%clk 0:01:24.2]} 32. h6 {[%clk 0:00:32.7]} 32... f4 {[%clk 0:01:16.3]} 33. Qg6
{[%clk 0:00:20.7]} 33... f3 {[%clk 0:01:04.5]} 34. gxf3 {[%clk 0:00:19.5]} 34...
Qc4 {[%clk 0:00:58.5]} 35. Qf5+ {[%clk 0:00:14.1]} 35... Kg8 {[%clk 0:00:58.8]}
36. Rg6+ {[%clk 0:00:11.2]} 36... Kh8 {[%clk 0:00:59]} 37. Kg2 {[%clk
0:00:05.2]} 37... Re8 {[%clk 0:00:57.9]} 38. Ne4 {[%clk 0:00:02.9]} 38... Qc1
{[%clk 0:00:52.3]} 39. Kh3 {[%clk 0:00:03.2]} 39... Qh1+ {[%clk 0:00:52.1]} 40.
Kg4 {[%clk 0:00:03.6]} 40... Qg2+ {[%clk 0:00:52.1]} 41. Kf4 {[%clk 0:00:03.1]}
41... Be5+ {[%clk 0:00:50]} 42. Qxe5+ {[%clk 0:00:03.5]} 42... Rxe5 {[%clk
0:00:48.3]} 43. Rxg2 {[%clk 0:00:02.9]} 43... Re7 {[%clk 0:00:48.5]} 44. Ng5
{[%clk 0:00:02.8]} 44... b6 {[%clk 0:00:47.4]} 45. Rd2 {[%clk 0:00:02.6]} 45...
Re8 {[%clk 0:00:46.9]} 46. Rd6 {[%clk 0:00:03.1]} 46... Rf8+ {[%clk 0:00:47.3]}
47. Kg4 {[%clk 0:00:03.7]} 47... Re8 {[%clk 0:00:48.2]} 48. Rd7 {[%clk
0:00:04.1]} 48... Kg8 {[%clk 0:00:49.1]} 49. Kh5 {[%clk 0:00:04.6]} 49... Kh8
{[%clk 0:00:50]} 50. Kg6 {[%clk 0:00:04.4]} 50... Re6+ {[%clk 0:00:50.9]} 51.
Nxe6 {[%clk 0:00:04.2]} 1-0

[Event "*** SCC Grand Prix: Titled Tuesday Blitz"]
[Site "Chess.com"]
[Date "2020.06.02"]
[Round "8"]
[White "m_ezat"]
[Black "MathiasWomacka"]
[Result "1-0"]
[WhiteElo "2546"]
[BlackElo "2387"]
[TimeControl "180+1"]
[EndTime "11:36:41 PDT"]
[Termination "m_ezat won on time"]

1. d4 {[%clk 0:03:00.9]} 1... Nf6 {[%clk 0:02:59.4]} 2. c4 {[%clk 0:02:58.1]}
2... e6 {[%clk 0:02:59.5]} 3. Nc3 {[%clk 0:02:57.7]} 3... Bb4 {[%clk 0:02:59.7]}
4. e3 {[%clk 0:02:58.1]} 4... c5 {[%clk 0:02:59.4]} 5. a3 {[%clk 0:02:57.3]}
5... Bxc3+ {[%clk 0:02:58.1]} 6. bxc3 {[%clk 0:02:57.9]} 6... O-O {[%clk
0:02:54.8]} 7. Bd3 {[%clk 0:02:57.1]} 7... b6 {[%clk 0:02:53.5]} 8. Ne2 {[%clk
0:02:56.3]} 8... Ba6 {[%clk 0:02:52.8]} 9. O-O {[%clk 0:02:56.5]} 9... Nc6
{[%clk 0:02:52.3]} 10. e4 {[%clk 0:02:56.6]} 10... Ne8 {[%clk 0:02:50.1]} 11.
Ng3 {[%clk 0:02:56.1]} 11... cxd4 {[%clk 0:02:42.5]} 12. cxd4 {[%clk 0:02:56.1]}
12... Nxd4 {[%clk 0:02:42.5]} 13. e5 {[%clk 0:02:56.7]} 13... f5 {[%clk
0:02:29.1]} 14. exf6 {[%clk 0:02:55.8]} 14... Nxf6 {[%clk 0:02:26.1]} 15. Bg5
{[%clk 0:02:29.9]} 15... h6 {[%clk 0:02:06.4]} 16. Be3 {[%clk 0:02:29.3]} 16...
e5 {[%clk 0:01:57.5]} 17. Bxd4 {[%clk 0:02:25.2]} 17... exd4 {[%clk 0:01:57.1]}
18. Nf5 {[%clk 0:02:25.2]} 18... d5 {[%clk 0:01:45.1]} 19. cxd5 {[%clk
0:02:17.8]} 19... Bxd3 {[%clk 0:01:44.8]} 20. Qxd3 {[%clk 0:02:17.7]} 20... Nxd5
{[%clk 0:01:44.9]} 21. Rfe1 {[%clk 0:02:12.5]} 21... Nf4 {[%clk 0:01:39.4]} 22.
Qe4 {[%clk 0:01:54.1]} 22... Qg5 {[%clk 0:01:38.3]} 23. Ng3 {[%clk 0:01:53.9]}
23... Rad8 {[%clk 0:01:18.7]} 24. Rac1 {[%clk 0:01:28.3]} 24... h5 {[%clk
0:01:13.6]} 25. h4 {[%clk 0:00:48.7]} 25... Qxh4 {[%clk 0:01:13.2]} 26. Rc7
{[%clk 0:00:46.8]} 26... Qg5 {[%clk 0:01:05.4]} 27. Kh2 {[%clk 0:00:32.3]} 27...
h4 {[%clk 0:00:51.7]} 28. Ne2 {[%clk 0:00:31.1]} 28... Nxg2 {[%clk 0:00:43.8]}
29. f4 {[%clk 0:00:19]} 29... Nxf4 {[%clk 0:00:39.3]} 30. Rg1 {[%clk 0:00:17.7]}
30... Qf6 {[%clk 0:00:13.9]} 31. Rgxg7+ {[%clk 0:00:12.8]} 31... Qxg7 {[%clk
0:00:13.7]} 32. Rxg7+ {[%clk 0:00:13.3]} 32... Kxg7 {[%clk 0:00:14.4]} 33. Nxf4
{[%clk 0:00:13.9]} 1-0

[Event "*** SCC Grand Prix: Titled Tuesday Blitz"]
[Site "Chess.com"]
[Date "2020.06.02"]
[Round "8"]
[White "ural58"]
[Black "anon569"]
[Result "1-0"]
[WhiteElo "2440"]
[BlackElo "2275"]
[TimeControl "180+1"]
[EndTime "11:36:42 PDT"]
[Termination "ural58 won by resignation"]

1. e4 {[%clk 0:03:00.9]} 1... c5 {[%clk 0:02:58.7]} 2. b3 {[%clk 0:02:51.4]}
2... Nc6 {[%clk 0:02:53.2]} 3. Bb2 {[%clk 0:02:41.6]} 3... d6 {[%clk 0:02:51.2]}
4. f4 {[%clk 0:02:34.6]} 4... Nf6 {[%clk 0:02:48.2]} 5. Qf3 {[%clk 0:02:15.6]}
5... e6 {[%clk 0:02:13.8]} 6. Nc3 {[%clk 0:02:03.1]} 6... Be7 {[%clk 0:02:12.1]}
7. O-O-O {[%clk 0:01:54.9]} 7... Bd7 {[%clk 0:01:53.5]} 8. g4 {[%clk 0:01:49.8]}
8... Nd4 {[%clk 0:01:35.9]} 9. Qg2 {[%clk 0:01:41.6]} 9... Bc6 {[%clk 0:01:34]}
10. g5 {[%clk 0:01:41.6]} 10... Nd7 {[%clk 0:01:11.2]} 11. Nce2 {[%clk
0:01:26.1]} 11... Qa5 {[%clk 0:01:01.7]} 12. Kb1 {[%clk 0:01:20.6]} 12... e5
{[%clk 0:00:42.2]} 13. h4 {[%clk 0:00:55.5]} 13... b5 {[%clk 0:00:27.4]} 14. c3
{[%clk 0:00:51.6]} 14... Ne6 {[%clk 0:00:20.9]} 15. f5 {[%clk 0:00:50.1]} 15...
Nc7 {[%clk 0:00:20.5]} 16. f6 {[%clk 0:00:49.3]} 16... gxf6 {[%clk 0:00:20]} 17.
Nf3 {[%clk 0:00:50.2]} 17... f5 {[%clk 0:00:18.4]} 18. exf5 {[%clk 0:00:49.5]}
18... e4 {[%clk 0:00:17.3]} 19. Nh2 {[%clk 0:00:46.1]} 19... Ne5 {[%clk
0:00:17.7]} 20. Nf4 {[%clk 0:00:43.8]} 20... e3 {[%clk 0:00:16.8]} 21. Qg1
{[%clk 0:00:37.8]} 21... Bxh1 {[%clk 0:00:14.8]} 22. Qxh1 {[%clk 0:00:28.6]}
22... exd2 {[%clk 0:00:14.9]} 23. f6 {[%clk 0:00:24.5]} 23... Bf8 {[%clk
0:00:13.5]} 24. Bh3 {[%clk 0:00:22.8]} 24... Qb6 {[%clk 0:00:08.5]} 25. Rxd2
{[%clk 0:00:21.4]} 25... c4 {[%clk 0:00:07.6]} 26. Nf3 {[%clk 0:00:19]} 26...
Qc6 {[%clk 0:00:02.8]} 27. Bg2 {[%clk 0:00:17]} 27... cxb3 {[%clk 0:00:02]} 28.
Nxe5 {[%clk 0:00:16.6]} 28... bxa2+ {[%clk 0:00:02.2]} 29. Ka1 {[%clk
0:00:17.1]} 29... Qa6 {[%clk 0:00:02.5]} 30. Bc6+ {[%clk 0:00:17.2]} 30... Kd8
{[%clk 0:00:02.3]} 31. Nxf7+ {[%clk 0:00:16.5]} 31... Kc8 {[%clk 0:00:02.4]} 32.
Qh3+ {[%clk 0:00:16.1]} 32... Kb8 {[%clk 0:00:01.4]} 33. Nxh8 {[%clk 0:00:15.2]}
33... Qc8 {[%clk 0:00:01.5]} 34. Qxc8+ {[%clk 0:00:14.5]} 1-0

[Event "*** SCC Grand Prix: Titled Tuesday Blitz"]
[Site "Chess.com"]
[Date "2020.06.02"]
[Round "8"]
[White "DaggiGretarsson"]
[Black "LizaSolovyova"]
[Result "0-1"]
[WhiteElo "2663"]
[BlackElo "2530"]
[TimeControl "180+1"]
[EndTime "11:36:44 PDT"]
[Termination "LizaSolovyova won on time"]

1. d4 {[%clk 0:02:59.9]} 1... f5 {[%clk 0:02:59.2]} 2. Bg5 {[%clk 0:02:59.4]}
2... d5 {[%clk 0:02:56.8]} 3. e3 {[%clk 0:02:57.5]} 3... Qd6 {[%clk 0:02:56.6]}
4. Nc3 {[%clk 0:02:55.4]} 4... e6 {[%clk 0:02:54.9]} 5. a3 {[%clk 0:02:46.3]}
5... c6 {[%clk 0:02:52.1]} 6. h4 {[%clk 0:02:34.6]} 6... Be7 {[%clk 0:02:50.2]}
7. Bf4 {[%clk 0:02:30.5]} 7... Qd8 {[%clk 0:02:48.6]} 8. h5 {[%clk 0:02:28.2]}
8... h6 {[%clk 0:02:47.2]} 9. Nf3 {[%clk 0:02:27.1]} 9... Nf6 {[%clk 0:02:45.2]}
10. Ne5 {[%clk 0:02:26.8]} 10... O-O {[%clk 0:02:41.3]} 11. Ng6 {[%clk
0:02:13.8]} 11... Re8 {[%clk 0:02:38.8]} 12. Qf3 {[%clk 0:02:08.5]} 12... Ne4
{[%clk 0:02:26.6]} 13. Nxe4 {[%clk 0:01:57.4]} 13... fxe4 {[%clk 0:02:21.1]} 14.
Qg3 {[%clk 0:01:57.4]} 14... e5 {[%clk 0:02:03.1]} 15. Bxe5 {[%clk 0:01:41.9]}
15... Nd7 {[%clk 0:01:49.8]} 16. Bxg7 {[%clk 0:01:39.2]} 16... Kxg7 {[%clk
0:01:49]} 17. Nxe7+ {[%clk 0:01:38.9]} 17... Kh8 {[%clk 0:01:34.2]} 18. Nf5
{[%clk 0:01:25.7]} 18... Qf6 {[%clk 0:01:29.2]} 19. Nh4 {[%clk 0:00:52.4]} 19...
Nf8 {[%clk 0:01:25.5]} 20. O-O-O {[%clk 0:00:51.1]} 20... a5 {[%clk 0:01:19.9]}
21. Be2 {[%clk 0:00:42.7]} 21... Ne6 {[%clk 0:01:14.4]} 22. Ng6+ {[%clk
0:00:40.2]} 22... Kh7 {[%clk 0:01:14]} 23. f3 {[%clk 0:00:40.4]} 23... Ng5
{[%clk 0:01:12.9]} 24. f4 {[%clk 0:00:36.8]} 24... Nf7 {[%clk 0:01:12.4]} 25.
Qh2 {[%clk 0:00:32.8]} 25... b5 {[%clk 0:01:05.2]} 26. g4 {[%clk 0:00:32.3]}
26... b4 {[%clk 0:01:02.7]} 27. a4 {[%clk 0:00:32]} 27... c5 {[%clk 0:01:01.2]}
28. dxc5 {[%clk 0:00:29.1]} 28... Bd7 {[%clk 0:00:54.5]} 29. Rxd5 {[%clk
0:00:22.9]} 29... Bxa4 {[%clk 0:00:50.3]} 30. g5 {[%clk 0:00:10.1]} 30... Qe6
{[%clk 0:00:49.8]} 31. Bc4 {[%clk 0:00:09.3]} 31... Bb5 {[%clk 0:00:49.6]} 32.
Ba2 {[%clk 0:00:08.6]} 32... b3 {[%clk 0:00:49.1]} 33. Bxb3 {[%clk 0:00:08.4]}
33... a4 {[%clk 0:00:49.2]} 34. Ba2 {[%clk 0:00:08.6]} 34... a3 {[%clk
0:00:48.7]} 35. b4 {[%clk 0:00:08.6]} 35... Rad8 {[%clk 0:00:44.7]} 36. f5
{[%clk 0:00:08.2]} 36... Qc6 {[%clk 0:00:38.1]} 37. Rxd8 {[%clk 0:00:07.5]}
37... Nxd8 {[%clk 0:00:37.1]} 38. Ne5 {[%clk 0:00:07.2]} 38... Qa6 {[%clk
0:00:29.6]} 39. g6+ {[%clk 0:00:07.1]} 39... Kg7 {[%clk 0:00:29.5]} 40. Rd1
{[%clk 0:00:04]} 40... Qf6 {[%clk 0:00:28.9]} 41. Rd5 {[%clk 0:00:02.1]} 41...
Bc6 {[%clk 0:00:28.8]} 0-1

[Event "*** SCC Grand Prix: Titled Tuesday Blitz"]
[Site "Chess.com"]
[Date "2020.06.02"]
[Round "8"]
[White "bulletteemo"]
[Black "kintoho"]
[Result "1-0"]
[WhiteElo "2540"]
[BlackElo "2348"]
[TimeControl "180+1"]
[EndTime "11:36:45 PDT"]
[Termination "bulletteemo won by resignation"]

1. e4 {[%clk 0:03:00.9]} 1... c5 {[%clk 0:02:59]} 2. Nf3 {[%clk 0:03:01]} 2...
Nf6 {[%clk 0:02:59.1]} 3. e5 {[%clk 0:03:01]} 3... Nd5 {[%clk 0:02:59.3]} 4. c3
{[%clk 0:03:00.7]} 4... d6 {[%clk 0:02:58.9]} 5. d4 {[%clk 0:03:00.9]} 5... Nc6
{[%clk 0:02:59.1]} 6. Bc4 {[%clk 0:02:55.6]} 6... Nb6 {[%clk 0:02:58.3]} 7. Bd3
{[%clk 0:02:55.8]} 7... cxd4 {[%clk 0:02:52.9]} 8. cxd4 {[%clk 0:02:55.8]} 8...
dxe5 {[%clk 0:02:52.4]} 9. dxe5 {[%clk 0:02:56.4]} 9... Nb4 {[%clk 0:02:48.7]}
10. Bb5+ {[%clk 0:02:55.6]} 10... Bd7 {[%clk 0:02:48.9]} 11. Bxd7+ {[%clk
0:02:31.6]} 11... Qxd7 {[%clk 0:02:48.8]} 12. Qxd7+ {[%clk 0:02:31.2]} 12...
Kxd7 {[%clk 0:02:42.9]} 13. Na3 {[%clk 0:02:30.7]} 13... e6 {[%clk 0:02:32.8]}
14. O-O {[%clk 0:02:30]} 14... Bc5 {[%clk 0:02:32.1]} 15. Bd2 {[%clk 0:02:24.2]}
15... Ke7 {[%clk 0:02:28.6]} 16. Rac1 {[%clk 0:02:22.9]} 16... Na6 {[%clk
0:02:14.2]} 17. Nb5 {[%clk 0:02:16.8]} 17... Rhc8 {[%clk 0:02:11.2]} 18. a3
{[%clk 0:02:12.9]} 18... Kf8 {[%clk 0:02:06.5]} 19. h4 {[%clk 0:02:10.9]} 19...
Nd5 {[%clk 0:02:03.4]} 20. h5 {[%clk 0:02:05.3]} 20... h6 {[%clk 0:02:02.2]} 21.
g4 {[%clk 0:02:02.5]} 21... Be7 {[%clk 0:01:58.7]} 22. Nfd4 {[%clk 0:02:00.7]}
22... Rd8 {[%clk 0:01:40.4]} 23. b4 {[%clk 0:01:58.3]} 23... Rd7 {[%clk
0:01:37.9]} 24. f4 {[%clk 0:01:49.8]} 24... Nac7 {[%clk 0:01:30.6]} 25. f5
{[%clk 0:01:44.2]} 25... Nxb5 {[%clk 0:01:23.8]} 26. Nxb5 {[%clk 0:01:44]} 26...
exf5 {[%clk 0:01:20]} 27. gxf5 {[%clk 0:01:42.8]} 27... a6 {[%clk 0:01:05.1]}
28. Nc3 {[%clk 0:01:06.2]} 28... Nxb4 {[%clk 0:01:01.8]} 29. f6 {[%clk
0:01:06.1]} 29... Bc5+ {[%clk 0:01:00.9]} 30. Kh1 {[%clk 0:01:06.2]} 30... Nd3
{[%clk 0:00:50.1]} 31. Rc2 {[%clk 0:00:50.4]} 31... Nxe5 {[%clk 0:00:48.2]} 32.
Ne4 {[%clk 0:00:45.7]} 32... Bxa3 {[%clk 0:00:48]} 33. fxg7+ {[%clk 0:00:45.4]}
33... Kxg7 {[%clk 0:00:43.9]} 34. Bc3 {[%clk 0:00:45.3]} 34... Re7 {[%clk
0:00:30.1]} 35. Rg2+ {[%clk 0:00:36.4]} 35... Kh8 {[%clk 0:00:23.2]} 36. Rf5
{[%clk 0:00:32.9]} 36... f6 {[%clk 0:00:17.7]} 37. Nxf6 {[%clk 0:00:22.4]} 37...
Rf8 {[%clk 0:00:12.1]} 38. Rxe5 {[%clk 0:00:17.6]} 38... Rxe5 {[%clk 0:00:12.2]}
39. Bxe5 {[%clk 0:00:17]} 39... b5 {[%clk 0:00:07.1]} 40. Nd7+ {[%clk
0:00:14.4]} 1-0

[Event "*** SCC Grand Prix: Titled Tuesday Blitz"]
[Site "Chess.com"]
[Date "2020.06.02"]
[Round "8"]
[White "Arjun2002"]
[Black "almo64"]
[Result "0-1"]
[WhiteElo "2654"]
[BlackElo "2831"]
[TimeControl "180+1"]
[EndTime "11:36:46 PDT"]
[Termination "almo64 won by resignation"]

1. e4 {[%clk 0:03:00.9]} 1... c5 {[%clk 0:02:59.2]} 2. Nf3 {[%clk 0:03:00.8]}
2... Nc6 {[%clk 0:02:59.6]} 3. d4 {[%clk 0:03:00.6]} 3... cxd4 {[%clk
0:02:59.6]} 4. Nxd4 {[%clk 0:03:01.5]} 4... Nf6 {[%clk 0:03:00.2]} 5. Nc3 {[%clk
0:03:01.8]} 5... d6 {[%clk 0:03:00.6]} 6. f3 {[%clk 0:03:00.5]} 6... Nxd4 {[%clk
0:02:56.7]} 7. Qxd4 {[%clk 0:02:59]} 7... e5 {[%clk 0:02:48.2]} 8. Bb5+ {[%clk
0:02:55.7]} 8... Bd7 {[%clk 0:02:44.5]} 9. Qd3 {[%clk 0:02:53.5]} 9... h6 {[%clk
0:02:43.4]} 10. Be3 {[%clk 0:02:51.1]} 10... Bc6 {[%clk 0:02:42.4]} 11. O-O-O
{[%clk 0:02:45.7]} 11... Be7 {[%clk 0:02:39.8]} 12. g4 {[%clk 0:02:40.4]} 12...
a6 {[%clk 0:02:27]} 13. Bxc6+ {[%clk 0:02:39.7]} 13... bxc6 {[%clk 0:02:27.2]}
14. h4 {[%clk 0:02:39.8]} 14... Nd7 {[%clk 0:02:24]} 15. Kb1 {[%clk 0:02:27.2]}
15... Nf8 {[%clk 0:02:06.8]} 16. g5 {[%clk 0:02:19.1]} 16... h5 {[%clk
0:02:01.6]} 17. f4 {[%clk 0:02:12.8]} 17... exf4 {[%clk 0:01:56]} 18. Bxf4
{[%clk 0:02:12.7]} 18... Ng6 {[%clk 0:01:55.9]} 19. Bxd6 {[%clk 0:02:09.2]}
19... Qxd6 {[%clk 0:01:49.3]} 20. Qxd6 {[%clk 0:02:08.9]} 20... Bxd6 {[%clk
0:01:49.7]} 21. Rxd6 {[%clk 0:02:08.9]} 21... Ne5 {[%clk 0:01:48.8]} 22. Ne2
{[%clk 0:01:48.7]} 22... Ke7 {[%clk 0:01:48.7]} 23. Rdd1 {[%clk 0:01:47.5]}
23... Rhd8 {[%clk 0:01:39.4]} 24. c3 {[%clk 0:01:26.9]} 24... g6 {[%clk
0:01:32.3]} 25. Kc2 {[%clk 0:01:23.4]} 25... Ng4 {[%clk 0:01:31.6]} 26. Nd4
{[%clk 0:00:41.5]} 26... Ne3+ {[%clk 0:01:11.4]} 27. Kc1 {[%clk 0:00:41.3]}
27... Nxd1 {[%clk 0:01:06.2]} 28. Nxc6+ {[%clk 0:00:41.1]} 28... Ke8 {[%clk
0:01:06.6]} 29. Nxd8 {[%clk 0:00:39.6]} 29... Nf2 {[%clk 0:01:06.8]} 30. Rf1
{[%clk 0:00:35.6]} 30... Nd3+ {[%clk 0:01:06.8]} 31. Kc2 {[%clk 0:00:32.3]}
31... Rxd8 {[%clk 0:01:06.9]} 32. Rf6 {[%clk 0:00:29.9]} 32... Nc5 {[%clk
0:01:06.8]} 33. Rc6 {[%clk 0:00:29.8]} 33... Nxe4 {[%clk 0:01:05.3]} 34. Rxa6
{[%clk 0:00:30]} 34... Ke7 {[%clk 0:01:01.7]} 35. a4 {[%clk 0:00:28.3]} 35... f6
{[%clk 0:01:01.5]} 36. gxf6+ {[%clk 0:00:27.9]} 36... Kf7 {[%clk 0:00:55]} 37.
a5 {[%clk 0:00:24.8]} 37... g5 {[%clk 0:00:53.6]} 38. hxg5 {[%clk 0:00:24.9]}
38... h4 {[%clk 0:00:49.7]} 39. Ra7+ {[%clk 0:00:23.5]} 39... Kg6 {[%clk
0:00:47.6]} 40. Rg7+ {[%clk 0:00:23.5]} 40... Kf5 {[%clk 0:00:47.9]} 41. f7
{[%clk 0:00:21.6]} 41... Nxg5 {[%clk 0:00:45.4]} 42. Rg8 {[%clk 0:00:20.4]}
42... Nxf7 {[%clk 0:00:45.2]} 43. Rxd8 {[%clk 0:00:12.6]} 43... Nxd8 {[%clk
0:00:44.5]} 44. a6 {[%clk 0:00:11.2]} 44... Nc6 {[%clk 0:00:44.7]} 45. b4 {[%clk
0:00:11.5]} 45... h3 {[%clk 0:00:44.8]} 46. b5 {[%clk 0:00:11.9]} 46... h2
{[%clk 0:00:35.7]} 47. bxc6 {[%clk 0:00:11.1]} 47... h1=Q {[%clk 0:00:35.9]} 48.
c7 {[%clk 0:00:12]} 48... Qa8 {[%clk 0:00:35.3]} 49. a7 {[%clk 0:00:10.6]} 49...
Ke6 {[%clk 0:00:35]} 50. Kb3 {[%clk 0:00:10.7]} 50... Kd7 {[%clk 0:00:35.4]} 0-1